fUSD/lending_fUSD_20240222
["ID","MTS","AMOUNT","RATE_DAILY","PERIOD"]
[314849590,1708593053109,-500.0,0.00035616,2]
[314849591,1708593053118,-500.0,0.00035616,2]
[314849592,1708593053127,-1133.26,0.00035616,2]
[314849593,1708593053137,-500.0,0.00035616,2]
[314849594,1708593053146,-562.73,0.00035616,2]
[314849595,1708593053155,-500.0,0.00035616,2]
[314849596,1708593053165,-500.0,0.00035616,2]
[314849597,1708593053174,-500.0,0.00035616,2]
[314849598,1708593053184,-501.58,0.00035616,2]
[314849599,1708593053193,-971.65,0.00035616,2]
[314849600,1708593053202,-649.67,0.00035616,2]
[314849601,1708593053212,-500.0,0.00035616,2]
[314849602,1708593053221,-503.73602748,0.00035616,2]
[314849603,1708593053230,-500.0,0.00035616,2]
[314849604,1708593053239,-508.12858644,0.00035616,2]
[314849605,1708593053248,-500.0,0.00035616,2]
[314849606,1708593053257,-500.0,0.00035616,2]
[314849607,1708593053266,-500.0,0.00035616,2]
[314849608,1708593053275,-500.0,0.00035616,2]
[314849609,1708593053285,-500.0,0.00035616,2]
[314849610,1708593053294,-500.0,0.00035616,2]
[314849611,1708593053302,-500.0,0.00035616,2]
[314849612,1708593053311,-873.89,0.00035616,2]
[314849613,1708593053320,-500.0,0.00035616,2]
[314849614,1708593053329,-500.0,0.00035616,2]
[314849615,1708593053338,-544.10048637,0.00035616,2]
[314849616,1708593053346,-506.39700267,0.00035616,2]
[314849617,1708593053355,-1221.72,0.00035616,2]
[314849618,1708593053364,-500.0,0.00035616,2]
[314849619,1708593053373,-500.0,0.00035616,2]
[314849620,1708593053382,-544.87195981,0.00035616,2]
[314849621,1708593053391,-857.81,0.00035616,2]
[314849622,1708593053400,-500.0,0.00035616,2]
[314849623,1708593053409,-500.0,0.00035616,2]
[314849624,1708593053418,-500.0,0.00035616,2]
[314849625,1708593053427,-500.0,0.00035616,2]
[314849626,1708593053437,-500.0,0.00035616,2]
[314849627,1708593053446,-500.0,0.00035616,2]
[314849628,1708593053455,-500.0,0.00035616,2]
[314849629,1708593053466,-500.0,0.00035616,2]
[314849630,1708593053475,-500.0,0.00035616,2]
[314849631,1708593053484,-569.18,0.00035616,2]
[314849632,1708593053493,-500.0,0.00035616,2]
[314849633,1708593053502,-500.0,0.00035616,2]
[314849634,1708593053511,-500.0,0.00035616,2]
[314849635,1708593053520,-500.0,0.00035616,2]
[314849636,1708593053528,-505.31643425,0.00035616,2]
[314849637,1708593053537,-500.0,0.00035616,2]
[314849638,1708593053546,-500.0,0.00035616,2]
[314849639,1708593053554,-500.0,0.00035616,2]
[314849640,1708593053565,-500.0,0.00035616,2]
[314849641,1708593053574,-500.0,0.00035616,2]
[314849642,1708593053583,-500.0,0.00035616,2]
[314849643,1708593053592,-500.0,0.00035616,2]
[314849644,1708593053601,-500.0,0.00035616,2]
[314849645,1708593053609,-500.0,0.00035616,2]
[314849646,1708593053618,-500.0,0.00035616,2]
[314849647,1708593053627,-916.42,0.00035616,2]
[314849648,1708593053637,-500.0,0.00035616,2]
[314849649,1708593053649,-950.18,0.00035616,2]
[314849650,1708593053658,-500.0,0.00035616,2]
[314849651,1708593053667,-500.0,0.00035616,2]
[314849652,1708593053676,-500.0,0.00035616,2]
[314849653,1708593053684,-500.0,0.00035616,2]
[314849654,1708593053694,-1123.54,0.00035616,2]
[314849655,1708593053703,-500.0,0.00035616,2]
[314849656,1708593053714,-500.0,0.00035616,2]
[314849657,1708593053723,-724.57,0.00035616,2]
[314849658,1708593053732,-500.0,0.00035616,2]
[314849659,1708593053742,-500.0,0.00035616,2]
[314849660,1708593053751,-500.0,0.00035616,2]
[314849661,1708593053761,-500.0,0.00035616,2]
[314849662,1708593053771,-803.39,0.00035616,2]
[314849663,1708593053781,-524.8661905,0.00035616,2]
[314849664,1708593053791,-500.0,0.00035616,2]
[314849665,1708593053801,-500.0,0.00035616,2]
[314849666,1708593053811,-508.14427686,0.00035616,2]
[314849667,1708593053820,-615.98,0.00035616,2]
[314849668,1708593053830,-500.0,0.00035616,2]
[314849669,1708593053839,-500.0,0.00035616,2]
[314849670,1708593053848,-500.0,0.00035616,2]
[314849671,1708593053858,-500.0,0.00035616,2]
[314849672,1708593053867,-500.0,0.00035616,2]
[314849673,1708593053876,-500.0,0.00035616,2]
[314849674,1708593053885,-500.0,0.00035616,2]
[314849675,1708593053895,-500.0,0.00035616,2]
[314849676,1708593053905,-500.0,0.00035616,2]
[314849677,1708593053914,-605.66,0.00035616,2]
[314849678,1708593053923,-500.0,0.00035616,2]
[314849679,1708593053932,-500.0,0.00035616,2]
[314849680,1708593053941,-639.59,0.00035616,2]
[314849681,1708593053951,-500.0,0.00035616,2]
[314849682,1708593053962,-500.0,0.00035616,2]
[314849683,1708593053970,-1477.01,0.00035616,2]
[314849684,1708593053980,-759.81,0.00035616,2]
[314849685,1708593053989,-1372.36,0.00035616,2]
[314849686,1708593053998,-500.0,0.00035616,2]
[314849687,1708593054007,-500.0,0.00035616,2]
[314849688,1708593054016,-500.0,0.00035616,2]
[314849689,1708593054025,-545.78,0.00035616,2]
[314849690,1708593054035,-500.0,0.00035616,2]
[314849691,1708593054043,-500.0,0.00035616,2]
[314849692,1708593054053,-500.0,0.00035616,2]
[314849693,1708593054062,-500.0,0.00035616,2]
[314849694,1708593054072,-500.0,0.00035616,2]
[314849695,1708593054082,-500.0,0.00035616,2]
[314849696,1708593054093,-500.0,0.00035616,2]
[314849697,1708593054103,-500.0,0.00035616,2]
[314849698,1708593054112,-500.0,0.00035616,2]
[314849699,1708593054121,-500.0,0.00035616,2]
[314849700,1708593054130,-512.64647934,0.00035616,2]
[314849701,1708593054139,-500.0,0.00035616,2]
[314849702,1708593054148,-540.34,0.00035616,2]
[314849703,1708593054157,-996.63,0.00035616,2]
[314849704,1708593054167,-1185.74,0.00035616,2]
[314849705,1708593054176,-500.0,0.00035616,2]
[314849706,1708593054185,-1117.23,0.00035616,2]
[314849707,1708593054194,-500.0,0.00035616,2]
[314849708,1708593054203,-8813.9,0.00035616,2]
[314849709,1708593054213,-500.0,0.00035616,2]
[314849710,1708593054222,-500.0,0.00035616,2]
[314849711,1708593054232,-500.0,0.00035616,2]
[314849712,1708593054241,-500.13,0.00035616,2]
[314849713,1708593054250,-500.0,0.00035616,2]
[314849714,1708593054258,-2502.9,0.00035616,2]
[314849715,1708593054267,-500.0,0.00035616,2]
[314849716,1708593054276,-564.94,0.00035616,2]
[314849717,1708593054285,-500.0,0.00035616,2]
[314849718,1708593054294,-500.0,0.00035616,2]
[314849719,1708593054302,-500.0,0.00035616,2]
[314849720,1708593054311,-500.0,0.00035616,2]
[314849721,1708593054320,-804.91,0.00035616,2]
[314849722,1708593054329,-506.82024109,0.00035616,2]
[314849723,1708593054338,-1082.5,0.00035616,2]
[314849724,1708593054347,-500.0,0.00035616,2]
[314849725,1708593054356,-500.0,0.00035616,2]
[314849726,1708593054365,-500.0,0.00035616,2]
[314849727,1708593054374,-247.85030234,0.00035616,2]
[314849728,1708593054383,-500.0,0.00035616,2]
[314849729,1708593054391,-500.0,0.00035616,2]
[314849730,1708593054400,-565.96,0.00035616,2]
[314849731,1708593054409,-565.44214804,0.00035616,2]
[314849732,1708593054418,-500.0,0.00035616,2]
[314849733,1708593054427,-9037.05,0.00035616,2]
[314849734,1708593054436,-8077.89,0.00035616,2]
[314849735,1708593054445,-500.0,0.00035616,2]
[314849736,1708593054454,-1247.36,0.00035616,2]
[314849737,1708593054465,-500.0,0.00035616,2]
[314849738,1708593054474,-500.0,0.00035616,2]
[314849739,1708593054483,-500.0,0.00035616,2]
[314849740,1708593054492,-500.0,0.00035616,2]
[314849741,1708593054502,-500.0,0.00035616,2]
[314849742,1708593054510,-500.0,0.00035616,2]
[314849743,1708593054519,-500.0,0.00035616,2]
[314849744,1708593054528,-592.37335006,0.00035616,2]
[314849745,1708593054537,-500.0,0.00035616,10]
[314849746,1708593054547,-500.0,0.00035616,2]
[314849747,1708593054556,-500.0,0.00035616,2]
[314849748,1708593054565,-253.95986139,0.00035616,2]
[314849749,1708593054575,-500.0,0.00035616,2]
[314849750,1708593054584,-500.0,0.00035616,2]
[314849751,1708593054593,-500.0,0.00035616,2]
[314849752,1708593054603,-500.0,0.00035616,2]
[314849753,1708593054611,-500.0,0.00035616,2]
[314849754,1708593054621,-1047.4,0.00035616,2]
[314849755,1708593054630,-500.0,0.00035616,2]
[314849756,1708593054639,-500.0,0.00035616,2]
[314849757,1708593054647,-3625.17,0.00035616,2]
[314849758,1708593054657,-510.19147109,0.00035616,2]
[314849759,1708593054666,-500.0,0.00035616,2]
[314849760,1708593054674,-1940.9,0.00035616,2]
[314849761,1708593054683,-500.0,0.00035616,2]
[314849762,1708593054692,-500.0,0.00035616,2]
[314849763,1708593054701,-278.31,0.00035616,2]
[314849764,1708593054711,-500.0,0.00035616,2]
[314849765,1708593054719,-500.0,0.00035616,2]
[314849766,1708593054728,-1466.81,0.00035616,2]
[314849767,1708593054737,-1262.03,0.00035616,2]
[314849768,1708593054747,-511.26864956,0.00035616,2]
[314849769,1708593054755,-500.0,0.00035616,2]
[314849770,1708593054764,-500.0,0.00035616,2]
[314849771,1708593054774,-500.0,0.00035616,2]
[314849772,1708593054785,-500.0,0.00035616,2]
[314849773,1708593054794,-500.0,0.00035616,2]
[314849774,1708593054803,-500.0,0.00035616,2]
[314849775,1708593054812,-500.0,0.00035616,2]
[314849776,1708593054821,-500.0,0.00035616,2]
[314849777,1708593054830,-1470.4,0.00035616,2]
[314849778,1708593054839,-500.0,0.00035616,2]
[314849779,1708593054848,-500.0,0.00035616,2]
[314849780,1708593054857,-827.58,0.00035616,2]
[314849781,1708593054866,-500.0,0.00035616,2]
[314849782,1708593054875,-500.0,0.00035616,2]
[314849783,1708593054884,-500.0,0.00035616,2]
[314849784,1708593054893,-175.66261423,0.00035616,2]
[314849785,1708593054902,-1252.05,0.00035616,2]
[314849786,1708593054911,-883.51,0.00035616,2]
[314849787,1708593054921,-500.0,0.00035616,2]
[314849788,1708593054930,-1048.09,0.00035616,2]
[314849789,1708593054939,-500.0,0.00035616,2]
[314849790,1708593054949,-500.0,0.00035616,2]
[314849791,1708593054959,-500.0,0.00035616,2]
[314849792,1708593054968,-500.0,0.00035616,2]
[314849793,1708593054977,-500.0,0.00035616,2]
[314849794,1708593054987,-500.0,0.00035616,2]
[314849795,1708593054996,-500.0,0.00035616,2]
[314849796,1708593055005,-500.0,0.00035616,2]
[314849797,1708593055014,-503.10622702,0.00035616,2]
[314849798,1708593055023,-500.0,0.00035616,2]
[314849799,1708593055032,-890.25,0.00035616,2]
[314849800,1708593055041,-5119.03,0.00035616,2]
[314849801,1708593055050,-1033.43,0.00035616,2]
[314849802,1708593055059,-1205.03,0.00035616,2]
[314849803,1708593055068,-500.0,0.00035616,2]
[314849804,1708593055080,-1280.74,0.00035616,2]
[314849805,1708593055089,-500.0,0.00035616,2]
[314849806,1708593055098,-500.0,0.00035616,2]
[314849807,1708593055107,-500.0,0.00035616,2]
[314849808,1708593055117,-500.0,0.00035616,2]
[314849809,1708593055126,-500.0,0.00035616,2]
[314849810,1708593055135,-500.0,0.00035616,2]
[314849811,1708593055144,-500.0,0.00035616,2]
[314849812,1708593055153,-645.33,0.00035616,2]
[314849813,1708593055163,-378.49142801,0.00035616,2]
[314849814,1708593055173,-500.0,0.00035616,2]
[314849815,1708593055182,-500.0,0.00035616,2]
[314849816,1708593055191,-500.0,0.00035616,2]
[314849817,1708593055201,-500.0,0.00035616,2]
[314849818,1708593055211,-500.0,0.00035616,2]
[314849819,1708593055220,-500.0,0.00035616,2]
[314849820,1708593055229,-500.0,0.00035616,2]
[314849821,1708593055238,-500.0,0.00035616,2]
[314849822,1708593055247,-500.0,0.00035616,2]
[314849823,1708593055256,-500.0,0.00035616,2]
[314849824,1708593055265,-500.0,0.00035616,2]
[314849825,1708593055274,-23261.82,0.00035616,2]
[314849826,1708593055284,-500.0,0.00035616,2]
[314849827,1708593055294,-500.0,0.00035616,2]
[314849828,1708593055303,-500.0,0.00035616,2]
[314849829,1708593055312,-500.0,0.00035616,2]
[314849830,1708593055321,-500.0,0.00035616,2]
[314849831,1708593055330,-500.0,0.00035616,2]
[314849832,1708593055340,-500.0,0.00035616,2]
[314849833,1708593055349,-534.68529035,0.00035616,2]
[314849834,1708593055358,-3423.77,0.00035616,2]
[314849835,1708593055367,-1073.85,0.00035616,2]
[314849836,1708593055375,-506.02175816,0.00035616,2]
[314849837,1708593055384,-500.0,0.00035616,2]
[314849838,1708593055393,-500.0,0.00035616,2]
[314849839,1708593055402,-500.0,0.00035616,2]
[314849840,1708593055411,-500.0,0.00035616,2]
[314849841,1708593055419,-2969.92,0.00035616,2]
[314849842,1708593055428,-500.0,0.00035616,2]
[314849843,1708593055438,-1315.73,0.00035616,2]
[314849844,1708593055446,-2026.21,0.00035616,2]
[314849845,1708593055455,-500.0,0.00035616,2]
[314849846,1708593055465,-500.0,0.00035616,2]
[314849847,1708593055474,-500.0,0.00035616,2]
[314849848,1708593055483,-1883.12,0.00035616,2]
[314849849,1708593055492,-500.0,0.00035616,2]
[314849850,1708593055501,-500.0,0.00035616,2]
[314849851,1708593055510,-500.0,0.00035616,2]
[314849852,1708593055520,-500.0,0.00035616,2]
[314849853,1708593055528,-506.2985173,0.00035616,2]
[314849854,1708593055537,-500.0,0.00035616,2]
[314849855,1708593055546,-500.0,0.00035616,2]
[314849856,1708593055555,-500.0,0.00035616,2]
[314849857,1708593055564,-500.0,0.00035616,2]
[314849858,1708593055573,-500.0,0.00035616,2]
[314849859,1708593055582,-502.65579115,0.00035616,2]
[314849860,1708593055591,-768.57,0.00035616,2]
[314849861,1708593055600,-500.0,0.00035616,2]
[314849862,1708593055609,-500.0,0.00035616,2]
[314849863,1708593055617,-500.0,0.00035616,2]
[314849864,1708593055626,-500.0,0.00035616,2]
[314849865,1708593055635,-832.98,0.00035616,2]
[314849866,1708593055644,-500.0,0.00035616,2]
[314849867,1708593055653,-500.0,0.00035616,2]
[314849868,1708593055662,-500.0,0.00035616,2]
[314849869,1708593055671,-753.76,0.00035616,2]
[314849870,1708593055680,-500.0,0.00035616,2]
[314849871,1708593055690,-500.0,0.00035616,2]
[314849872,1708593055698,-500.0,0.00035616,2]
[314849873,1708593055708,-1576.61,0.00035616,2]
[314849874,1708593055717,-500.0,0.00035616,2]
[314849875,1708593055726,-500.0,0.00035616,2]
[314849876,1708593055735,-500.0,0.00035616,2]
[314849877,1708593055744,-15895.95,0.00035616,2]
[314849878,1708593055753,-500.0,0.00035616,2]
[314849879,1708593055762,-2990.47,0.00035616,2]
[314849880,1708593055772,-500.0,0.00035616,2]
[314849881,1708593055781,-500.0,0.00035616,2]
[314849882,1708593055790,-155.36137988,0.00035616,2]
[314849883,1708593055799,-500.0,0.00035616,2]
[314849884,1708593055808,-500.0,0.00035616,2]
[314849885,1708593055817,-500.0,0.00035616,2]
[314849886,1708593055827,-500.0,0.00035616,2]
[314849887,1708593055836,-8209.64,0.00035616,2]
[314849888,1708593055845,-500.0,0.00035616,2]
[314849889,1708593055854,-234.14222068,0.00035616,2]
[314849890,1708593055863,-500.0,0.00035616,2]
[314849891,1708593055872,-619.52,0.00035616,2]
[314849892,1708593055882,-189.11707504,0.00035616,2]
[314849893,1708593055891,-833.63,0.00035616,2]
[314849894,1708593055901,-673.04,0.00035616,2]
[314849895,1708593055913,-500.0,0.00035616,2]
[314849896,1708593055923,-1544.49,0.00035616,2]
[314849897,1708593055932,-1507.26,0.00035616,2]
[314849898,1708593055942,-1044.18,0.00035616,2]
[314849899,1708593055951,-500.0,0.00035616,2]
[314849900,1708593055961,-405.88065044,0.00035616,2]
[314849901,1708593055972,-11426.41,0.00035616,2]
[314849902,1708593055982,-204.13008038,0.00035616,2]
[314849903,1708593055992,-500.0,0.00035616,2]
[314849904,1708593056001,-2510.74,0.00035616,2]
[314849905,1708593056011,-500.0,0.00035616,2]
[314849906,1708593056020,-500.0,0.00035616,2]
[314849907,1708593056029,-500.0,0.00035616,2]
[314849908,1708593056039,-500.0,0.00035616,2]
[314849909,1708593056048,-500.0,0.00035616,2]
[314849910,1708593056057,-500.0,0.00035616,2]
[314849911,1708593056066,-500.0,0.00035616,2]
[314849912,1708593056075,-743.43,0.00035616,2]
[314849913,1708593056084,-503.47321877,0.00035616,2]
[314849914,1708593056096,-500.0,0.00035616,2]
[314849915,1708593056106,-500.0,0.00035616,2]
[314849916,1708593056115,-747.28,0.00035616,2]
[314849917,1708593056125,-799.31,0.00035616,2]
[314849918,1708593056134,-500.0,0.00035616,2]
[314849919,1708593056143,-500.0,0.00035616,2]
[314849920,1708593056152,-991.75,0.00035616,2]
[314849921,1708593056161,-1646.08,0.00035616,2]
[314849922,1708593056171,-500.0,0.00035616,2]
[314849923,1708593056180,-572.15883328,0.00035616,2]
[314849924,1708593056190,-500.0,0.00035616,2]
[314849925,1708593056199,-1234.25,0.00035616,2]
[314849926,1708593056209,-992.72,0.00035616,2]
[314849927,1708593056219,-2949.58,0.00035616,2]
[314849928,1708593056228,-510.96064012,0.00035616,2]
[314849929,1708593056237,-500.0,0.00035616,2]
[314849930,1708593056246,-1181.09,0.00035616,2]
[314849931,1708593056256,-2113.57,0.00035616,2]
[314849932,1708593056265,-15830.84,0.00035616,2]
[314849933,1708593056274,-533.77,0.00035616,2]
[314849934,1708593056284,-500.0,0.00035616,2]
[314849935,1708593056293,-502.65,0.00035616,2]
[314849936,1708593056302,-500.0,0.00035616,2]
[314849937,1708593056311,-592.56,0.00035616,2]
[314849938,1708593056320,-500.0,0.00035616,2]
[314849939,1708593056329,-500.0,0.00035616,2]
[314849940,1708593056338,-941.85,0.00035616,2]
[314849941,1708593056347,-500.0,0.00035616,2]
[314849942,1708593056356,-500.0,0.00035616,2]
[314849943,1708593056365,-500.0,0.00035616,2]
[314849944,1708593056374,-884.33,0.00035616,2]
[314849945,1708593056383,-500.0,0.00035616,2]
[314849946,1708593056392,-500.0,0.00035616,2]
[314849947,1708593056401,-5492.11,0.00035616,2]
[314849948,1708593056411,-14930.42,0.00035616,2]
[314849949,1708593056420,-11177.75,0.00035616,2]
[314849950,1708593056429,-824.03,0.00035616,2]
[314849951,1708593056438,-500.0,0.00035616,2]
[314849952,1708593056447,-500.0,0.00035616,2]
[314849953,1708593056456,-1032.06,0.00035616,2]
[314849954,1708593056466,-500.0,0.00035616,2]
[314849955,1708593056476,-503.06850829,0.00035616,2]
[314849956,1708593056486,-500.0,0.00035616,2]
[314849957,1708593056496,-500.0,0.00035616,2]
[314849958,1708593056505,-613.2,0.00035616,2]
[314849959,1708593056514,-550.39092327,0.00035616,2]
[314849960,1708593056523,-690.79,0.00035616,2]
[314849961,1708593056532,-500.0,0.00035616,2]
[314849962,1708593056542,-394.56442261,0.00035616,2]
[314849963,1708593056551,-2892.97,0.00035616,2]
[314849964,1708593056561,-502.36855736,0.00035616,2]
[314849965,1708593056571,-500.0,0.00035616,2]
[314849966,1708593056580,-500.0,0.00035616,2]
[314849967,1708593056590,-1585.36,0.00035616,2]
[314849968,1708593056599,-500.0,0.00035616,2]
[314849969,1708593056608,-500.0,0.00035616,2]
[314849970,1708593056618,-500.0,0.00035616,2]
[314849971,1708593056628,-500.0,0.00035616,2]
[314849972,1708593056637,-500.0,0.00035616,2]
[314849973,1708593056647,-500.0,0.00035616,2]
[314849974,1708593056656,-2781.59,0.00035616,2]
[314849975,1708593056665,-500.0,0.00035616,2]
[314849976,1708593056674,-2406.03,0.00035616,2]
[314849977,1708593056799,-1071.36,0.00035616,2]
[314849978,1708593056811,-614.88,0.00035616,2]
[314849979,1708593056821,-500.0,0.00035616,2]
[314849980,1708593056830,-500.0,0.00035616,2]
[314849981,1708593056840,-500.0,0.00035616,2]
[314849982,1708593056849,-848.21,0.00035616,2]
[314849983,1708593056858,-500.0,0.00035616,2]
[314849984,1708593056868,-769.89,0.00035616,2]
[314849985,1708593056877,-509.68813807,0.00035616,2]
[314849986,1708593056886,-1684.67,0.00035616,2]
[314849987,1708593056895,-500.0,0.00035616,2]
[314849988,1708593056905,-500.0,0.00035616,2]
[314849989,1708593056914,-500.0,0.00035616,2]
[314849990,1708593056924,-506.81590244,0.00035616,2]
[314849991,1708593056933,-500.0,0.00035616,2]
[314849992,1708593056942,-513.20343893,0.00035616,2]
[314849993,1708593056952,-4350.9,0.00035616,2]
[314849994,1708593056962,-863.2,0.00035616,2]
[314849995,1708593056971,-1688.72,0.00035616,2]
[314849996,1708593056981,-2340.12,0.00035616,2]
[314849997,1708593056990,-500.0,0.00035616,2]
[314849998,1708593056999,-500.0,0.00035616,2]
[314849999,1708593057009,-504.24307689,0.00035616,2]
[314850000,1708593057018,-588.44,0.00035616,2]
[314850001,1708593057028,-754.24,0.00035616,2]
[314850002,1708593057037,-2025.77,0.00035616,2]
[314850003,1708593057048,-234.93498041,0.00035616,2]
[314850004,1708593057057,-500.0,0.00035616,2]
[314850005,1708593057066,-1613.45,0.00035616,2]
[314850006,1708593057076,-712.15,0.00035616,2]
[314850007,1708593057086,-500.0,0.00035616,2]
[314850008,1708593057098,-553.72,0.00035616,2]
[314850009,1708593057107,-1053.87,0.00035616,2]
[314850010,1708593057117,-500.0,0.00035616,2]
[314850011,1708593057126,-500.0,0.00035616,2]
[314850012,1708593057137,-500.0,0.00035616,2]
[314850013,1708593057146,-500.0,0.00035616,2]
[314850014,1708593057156,-848.41,0.00035616,2]
[314850015,1708593057166,-500.0,0.00035616,2]
[314850016,1708593057177,-503.44409828,0.00035616,2]
[314850017,1708593057188,-500.0,0.00035616,2]
[314850018,1708593057198,-500.0,0.00035616,2]
[314850019,1708593057207,-606.52,0.00035616,2]
[314850020,1708593057218,-572.05209813,0.00035616,2]
[314850021,1708593057227,-500.0,0.00035616,2]
[314850022,1708593057236,-500.0,0.00035616,2]
[314850023,1708593057245,-516.86,0.00035616,2]
[314850024,1708593057254,-4390.55,0.00035616,2]
[314850025,1708593057264,-903.28,0.00035616,2]
[314850026,1708593057274,-500.0,0.00035616,2]
[314850027,1708593057282,-713.51,0.00035616,2]
[314850028,1708593057291,-2718.57,0.00035616,2]
[314850029,1708593057300,-500.0,0.00035616,2]
[314850030,1708593057310,-500.0,0.00035616,2]
[314850031,1708593057319,-982.14,0.00035616,2]
[314850032,1708593057329,-1561.55,0.00035616,2]
[314850033,1708593057339,-598.8846773,0.00035616,2]
[314850034,1708593057348,-9548.96,0.00035616,2]
[314850035,1708593057358,-500.0,0.00035616,2]
[314850036,1708593057367,-500.0,0.00035616,2]
[314850037,1708593057376,-1779.55,0.00035616,2]
[314850038,1708593057386,-1704.79,0.00035616,2]
[314850039,1708593057395,-500.0,0.00035616,2]
[314850040,1708593057404,-500.0,0.00035616,2]
[314850041,1708593057413,-817.08,0.00035616,2]
[314850042,1708593057423,-705.7,0.00035616,2]
[314850043,1708593057432,-3390.72,0.00035616,2]
[314850044,1708593057441,-786.08,0.00035616,2]
[314850045,1708593057450,-8457.55,0.00035616,2]
[314850046,1708593057459,-500.0,0.00035616,2]
[314850047,1708593057469,-1785.96,0.00035616,2]
[314850048,1708593057478,-1767.22,0.00035616,2]
[314850049,1708593057487,-500.0,0.00035616,2]
[314850050,1708593057496,-500.0,0.00035616,2]
[314850051,1708593057506,-500.0,0.00035616,2]
[314850052,1708593057515,-1229.81,0.00035616,2]
[314850053,1708593057525,-505.32385687,0.00035616,2]
[314850054,1708593057534,-500.0,0.00035616,2]
[314850055,1708593057543,-3294.85,0.00035616,2]
[314850056,1708593057553,-500.0,0.00035616,2]
[314850057,1708593057562,-519.66853515,0.00035616,2]
[314850058,1708593057572,-500.0,0.00035616,2]
[314850059,1708593057581,-500.0,0.00035616,2]
[314850060,1708593057590,-500.0,0.00035616,2]
[314850061,1708593057600,-564.11,0.00035616,2]
[314850062,1708593057609,-1709.19,0.00035616,2]
[314850063,1708593057618,-500.0,0.00035616,2]
[314850064,1708593057628,-500.0,0.00035616,2]
[314850065,1708593057638,-500.0,0.00035616,2]
[314850066,1708593057647,-500.0,0.00035616,2]
[314850067,1708593057657,-500.0,0.00035616,2]
[314850068,1708593057666,-582.31298145,0.00035616,2]
[314850069,1708593057676,-500.0,0.00035616,2]
[314850070,1708593057686,-703.41,0.00035616,2]
[314850071,1708593057696,-580.84,0.00035616,2]
[314850072,1708593057705,-1979.11,0.00035616,2]
[314850073,1708593057715,-929.35,0.00035616,2]
[314850074,1708593057725,-500.0,0.00035616,2]
[314850075,1708593057735,-542.95,0.00035616,2]
[314850076,1708593057745,-9351.8,0.00035616,2]
[314850077,1708593057755,-684.03,0.00035616,2]
[314850078,1708593057764,-500.0,0.00035616,2]
[314850079,1708593057774,-500.0,0.00035616,2]
[314850080,1708593057784,-587.21,0.00035616,2]
[314850081,1708593057795,-2399.88,0.00035616,2]
[314850082,1708593057804,-500.0,0.00035616,2]
[314850083,1708593057813,-1262.26,0.00035616,2]
[314850084,1708593057823,-578.45,0.00035616,2]
[314850085,1708593057833,-500.0,0.00035616,2]
[314850086,1708593057842,-500.0,0.00035616,2]
[314850087,1708593057852,-500.0,0.00035616,2]
[314850088,1708593057862,-500.0,0.00035616,2]
[314850089,1708593057871,-500.0,0.00035616,2]